bitfinex/quotes_SOLUSD_20230120
["timestamp","ask_amount","ask_price","bid_price","bid_amount"]
[1674201813073,1.92,21.042,21.028,35.67]
[1674201813308,1.92,21.042,21.029,10.0]
[1674201813707,18.92,21.042,21.029,10.0]
[1674201814674,1.92,21.042,21.03,20.5]
[1674201814891,1.92,21.042,21.03,56.17]
[1674201815102,1.92,21.042,21.031,10.0]
[1674201816048,1.92,21.042,21.03,56.17]
[1674201816354,1.92,21.042,21.03,50.93]
[1674201818472,1.92,21.042,21.031,10.0]
[1674201819311,1.92,21.042,21.03,50.93]
[1674201819732,18.92,21.042,21.03,15.26]
[1674201820669,45.64,21.046,21.03,15.26]
[1674201820876,10.0,21.046,21.031,35.66]
[1674201821397,23.75576951,21.045,21.028,35.67]
[1674201821606,15.4,21.04,21.023,35.68]
[1674201821928,10.0,21.038,21.022,35.68]
[1674201822256,10.0,21.036,21.021,259.7434]
[1674201822462,18.92,21.035,21.021,259.7434]
[1674201822676,10.0,21.034,21.021,259.7434]
[1674201822861,10.0,21.032,21.021,259.7434]
[1674201823071,17.96,21.031,21.021,259.7434]
[1674201823283,0.96,21.03,21.021,259.7434]
[1674201826539,0.96,21.029,21.021,259.7434]
[1674201826756,0.96,21.029,21.021,224.0634]
[1674201827595,0.96,21.03,21.021,224.0634]
[1674201827807,0.96,21.03,21.021,259.7434]
[1674201828118,10.0,21.034,21.021,259.7434]
[1674201828344,18.92,21.033,21.021,259.7434]
[1674201830662,10.0,21.032,21.021,259.7434]
[1674201830878,18.92,21.031,21.021,259.7434]
[1674201832846,1.92,21.031,21.021,259.7434]
[1674201833268,55.65,21.037,21.022,10.0]
[1674201833506,20.0,21.037,21.023,35.68]
[1674201833686,20.0,21.036,21.024,10.0]
[1674201833899,20.0,21.038,21.025,35.68]
[1674201834110,20.0,21.038,21.026,10.0]
[1674201834541,20.0,21.04,21.026,10.0]
[1674201834861,10.0,21.039,21.026,10.0]
[1674201835075,20.0,21.038,21.026,10.0]
[1674201835489,20.0,21.038,21.025,35.68]
[1674201835702,18.92,21.037,21.024,10.0]
[1674201835905,20.0,21.036,21.024,10.0]
[1674201836109,18.92,21.035,21.024,10.0]
[1674201836321,1.92,21.035,21.024,10.0]
[1674201836551,1.92,21.035,21.025,35.68]
[1674201836943,1.92,21.035,21.024,10.0]
[1674201838860,1.92,21.035,21.025,20.0]
[1674201839086,1.92,21.035,21.026,10.0]
[1674201839277,1.92,21.035,21.028,10.0]
[1674201839594,1.92,21.035,21.027,55.67]
[1674201839786,17.0,21.037,21.028,10.0]
[1674201840004,35.64,21.043,21.03,15.31]
[1674201840215,45.64,21.046,21.03,15.31]
[1674201840433,10.0,21.046,21.031,35.66]
[1674201840649,15.44,21.06,21.031,35.66]
[1674201840650,35.63,21.053,21.032,37.0]
[1674201840851,23.75576951,21.051,21.033,45.66]
[1674201841054,23.75576951,21.051,21.035,10.0]
[1674201841275,35.62,21.058,21.04,15.26]
[1674201841598,23.75576951,21.053,21.04,15.26]
[1674201844342,0.96,21.052,21.04,15.26]
[1674201844544,10.96,21.051,21.04,15.26]
[1674201844755,17.96,21.05,21.04,15.26]
[1674201844947,0.96,21.049,21.039,10.0]
[1674201845274,0.96,21.048,21.039,10.0]
[1674201845482,0.96,21.047,21.039,10.0]
[1674201845700,0.96,21.046,21.039,10.0]
[1674201847505,0.96,21.046,21.037,45.65]
[1674201847999,23.75576951,21.052,21.037,45.65]
[1674201848211,10.0,21.051,21.04,15.28]
[1674201848432,10.0,21.051,21.041,35.65]
[1674201848644,35.62,21.056,21.041,10.0]
[1674201848843,23.75576951,21.055,21.041,45.57258972]
[1674201849053,10.0,21.054,21.041,35.65]
[1674201849478,17.0,21.053,21.041,35.65]
[1674201850422,23.75576951,21.055,21.042,10.0]
[1674201851173,23.75576951,21.055,21.043,35.64]
[1674201851480,23.75576951,21.055,21.042,10.0]
[1674201851692,0.96,21.054,21.042,10.0]
[1674201852218,0.96,21.053,21.042,10.0]
[1674201852437,0.96,21.052,21.042,10.0]
[1674201852838,0.96,21.052,21.043,35.64]
[1674201853898,17.96,21.052,21.041,45.65]
[1674201854111,0.96,21.051,21.041,45.65]
[1674201854612,0.96,21.05,21.041,45.65]
[1674201854825,0.96,21.049,21.041,45.65]
[1674201855054,0.96,21.048,21.041,35.65]
[1674201855269,0.96,21.047,21.041,35.65]
[1674201855462,0.96,21.048,21.041,35.65]
[1674201855668,0.96,21.048,21.036,55.66]
[1674201855669,0.96,21.046,21.036,55.66]
[1674201855898,0.96,21.045,21.036,55.66]
[1674201856088,0.96,21.044,21.036,55.66]
[1674201856299,0.96,21.043,21.036,55.66]
[1674201856737,0.96,21.043,21.036,20.0]
[1674201856955,0.96,21.043,21.034,35.66]
[1674201856956,0.96,21.042,21.034,35.66]
[1674201857263,0.96,21.041,21.031,35.66]
[1674201857457,0.96,21.041,21.027,35.67]
[1674201857458,0.96,21.04,21.027,35.67]
[1674201857803,0.96,21.039,21.025,35.68]
[1674201857987,34.71576951,21.039,21.022,35.68]
[1674201858313,17.0,21.038,21.022,35.68]
[1674201858501,0.96,21.037,21.022,35.68]
[1674201858707,0.96,21.037,21.022,45.68]
[1674201858933,0.96,21.036,21.023,10.0]
[1674201859245,0.96,21.036,21.024,35.68]
[1674201859464,0.96,21.035,21.024,35.68]
[1674201859673,0.96,21.035,21.025,10.0]
[1674201859875,0.96,21.035,21.026,35.67]
[1674201860308,0.96,21.035,21.024,35.68]
[1674201860626,0.96,21.035,21.025,10.0]
[1674201860945,0.96,21.035,21.026,55.67]
[1674201862493,0.96,21.035,21.027,10.0]
[1674201863570,35.65,21.04,21.027,10.0]
[1674201863779,35.64,21.048,21.03,15.4]
[1674201863961,20.0,21.047,21.031,45.66]
[1674201864172,20.0,21.047,21.031,62.66]
[1674201864405,10.0,21.046,21.031,45.66]
[1674201865142,10.0,21.044,21.031,45.66]
[1674201865461,17.96,21.043,21.031,45.66]
[1674201865987,0.96,21.042,21.031,45.66]
[1674201866316,0.96,21.041,21.031,45.66]
[1674201866727,0.96,21.041,21.031,35.66]
[1674201867456,0.96,21.042,21.031,35.66]
[1674201867672,0.96,21.041,21.031,35.66]
[1674201870420,0.96,21.041,21.03,15.4]
[1674201870729,10.96,21.04,21.03,15.4]
[1674201870929,10.0,21.038,21.026,55.67]
[1674201871136,18.92,21.037,21.026,55.67]
[1674201871343,18.92,21.037,21.026,20.0]
[1674201871554,18.92,21.037,21.025,20.0]
[1674201871764,18.92,21.037,21.026,35.67]
[1674201872095,10.0,21.036,21.027,20.0]
[1674201872304,18.92,21.035,21.025,20.0]
[1674201872914,1.92,21.035,21.026,10.0]
[1674201873135,1.92,21.035,21.027,55.67]
[1674201874098,0.96,21.035,21.027,55.67]
[1674201874308,0.96,21.036,21.028,10.0]
[1674201875252,0.96,21.036,21.027,55.67]
[1674201875565,0.96,21.035,21.027,20.0]
[1674201876819,45.64,21.046,21.028,35.67]
[1674201877039,45.64,21.046,21.031,10.0]
[1674201877460,10.0,21.046,21.031,45.66]
[1674201878193,10.0,21.044,21.031,35.66]
[1674201878377,10.0,21.042,21.031,35.66]
[1674201878593,0.96,21.041,21.031,35.66]
[1674201878803,1.92,21.041,21.031,35.66]
[1674201879540,18.92,21.041,21.031,35.66]
[1674201880187,18.92,21.041,21.03,15.4]
[1674201881347,18.92,21.041,21.028,35.67]
[1674201881769,35.64,21.045,21.03,15.31]
[1674201881982,10.0,21.046,21.031,10.0]
[1674201882179,10.0,21.046,21.03,50.98]
[1674201882724,10.0,21.044,21.03,50.98]
[1674201883145,18.92,21.043,21.03,50.98]
[1674201883349,10.0,21.042,21.03,15.31]
[1674201883537,18.92,21.041,21.03,15.31]
[1674201884196,18.92,21.041,21.03,50.98]
[1674201884382,1.92,21.041,21.03,50.98]
[1674201884592,35.64,21.046,21.03,50.98]
[1674201884804,20.0,21.047,21.031,17.0]
[1674201885027,20.0,21.047,21.033,10.0]
[1674201886283,20.0,21.047,21.035,10.0]
[1674201886712,18.92,21.046,21.034,35.66]
[1674201887109,18.92,21.046,21.032,10.0]
[1674201887110,10.0,21.045,21.033,35.66]
[1674201887329,18.92,21.044,21.033,35.66]
[1674201887540,10.0,21.043,21.033,35.66]
[1674201887762,1.92,21.042,21.032,35.66]
[1674201888588,1.92,21.042,21.031,35.66]
[1674201889014,18.92,21.042,21.031,35.66]
[1674201889756,18.92,21.042,21.03,50.98]
[1674201891853,18.92,21.042,21.03,15.31]
[1674201895448,10.0,21.041,21.03,15.31]
[1674201895635,18.92,21.04,21.03,15.31]
[1674201896790,1.92,21.04,21.03,15.31]
[1674201897429,65.64,21.047,21.031,10.0]
[1674201897645,18.92,21.045,21.032,35.66]
[1674201897840,18.92,21.045,21.033,10.0]
[1674201898053,17.0,21.044,21.033,10.0]
[1674201898264,1.92,21.043,21.032,35.66]
[1674201898577,0.96,21.042,21.032,35.66]
[1674201898786,0.96,21.041,21.032,35.66]
[1674201898991,0.96,21.04,21.031,45.66]
[1674201899427,0.96,21.042,21.031,45.66]
[1674201899631,0.96,21.041,21.031,45.66]
[1674201900083,0.96,21.04,21.031,45.66]
[1674201900271,0.96,21.04,21.031,35.66]
[1674201900464,0.96,21.04,21.03,50.98]
[1674201901963,0.96,21.04,21.031,10.0]
[1674201902358,0.96,21.04,21.033,10.0]
[1674201903093,0.96,21.04,21.031,45.66]
[1674201904598,0.96,21.04,21.031,35.66]
[1674201904795,0.96,21.04,21.03,15.31]
[1674201905003,17.96,21.04,21.03,15.31]
[1674201905214,0.96,21.039,21.03,15.31]
[1674201905545,0.96,21.038,21.028,10.0]
[1674201905861,0.96,21.037,21.028,10.0]
[1674201907644,35.64,21.044,21.03,15.4]
[1674201907854,45.64,21.045,21.031,10.0]
[1674201908358,10.0,21.045,21.031,45.66]
[1674201908906,35.64,21.046,21.031,45.66]
[1674201909122,0.96,21.045,21.031,45.66]
[1674201909334,0.96,21.046,21.031,45.66]
[1674201909520,10.96,21.046,21.031,45.66]
[1674201910180,0.96,21.045,21.031,45.66]
[1674201910483,17.96,21.045,21.031,45.66]
[1674201910698,17.96,21.044,21.031,45.66]
[1674201911009,0.96,21.043,21.031,45.66]
[1674201911531,0.96,21.044,21.031,45.66]
[1674201911746,0.96,21.043,21.031,45.66]
[1674201913428,0.96,21.043,21.031,35.66]
[1674201913630,0.96,21.043,21.03,15.4]
[1674201913830,10.96,21.043,21.03,15.4]
[1674201914039,17.96,21.042,21.03,15.4]
[1674201914249,0.96,21.041,21.03,15.4]
[1674201914480,0.96,21.04,21.03,15.4]
[1674201914695,0.96,21.039,21.03,15.4]
[1674201915109,35.64,21.044,21.031,35.66]
[1674201915330,0.96,21.043,21.032,10.0]
[1674201915639,0.96,21.043,21.034,10.0]
[1674201916479,0.96,21.045,21.034,10.0]
[1674201916699,0.96,21.045,21.033,35.66]
[1674201917000,10.96,21.045,21.033,35.66]
[1674201917209,0.96,21.045,21.034,10.0]
[1674201917741,0.96,21.044,21.034,10.0]
[1674201918051,0.96,21.043,21.034,10.0]
[1674201920367,0.96,21.043,21.033,35.66]
[1674201920890,10.0,21.051,21.033,35.66]
[1674201921076,35.62,21.056,21.04,15.26]
[1674201921288,10.0,21.054,21.041,35.65]
[1674201921515,45.62,21.057,21.041,35.65]
[1674201921711,10.0,21.057,21.042,10.0]
[1674201922043,10.0,21.057,21.043,35.64]
[1674201922257,20.0,21.056,21.043,35.64]
[1674201922443,20.0,21.056,21.044,17.0]
[1674201922654,35.61,21.064,21.05,15.4]
[1674201922864,10.0,21.064,21.05,15.4]
[1674201923731,10.0,21.068,21.052,10.0]
[1674201924129,55.6,21.067,21.052,10.0]
[1674201924339,10.0,21.066,21.052,10.0]
[1674201924971,20.0,21.067,21.053,35.63]
[1674201925490,20.0,21.067,21.054,10.0]
[1674201925703,55.6,21.067,21.054,10.0]
[1674201925911,55.6,21.067,21.053,35.63]
[1674201926147,10.0,21.066,21.053,35.63]
[1674201926374,18.92,21.065,21.053,35.63]
[1674201927393,1.92,21.065,21.054,10.0]
[1674201928661,1.92,21.065,21.053,35.63]
[1674201929923,11.92,21.065,21.053,35.63]
[1674201930152,0.96,21.065,21.052,45.63]
[1674201930362,0.96,21.066,21.052,45.63]
[1674201930759,20.96,21.066,21.052,35.63]
[1674201930990,23.75576951,21.065,21.05,15.4]
[1674201931206,35.61,21.064,21.05,15.4]
[1674201931399,0.96,21.063,21.05,15.4]
[1674201931827,0.96,21.062,21.051,35.63]
[1674201932160,0.96,21.061,21.05,51.03]
[1674201932333,0.96,21.06,21.05,15.4]
[1674201932546,0.96,21.059,21.05,15.4]
[1674201932772,0.96,21.058,21.05,15.4]
[1674201932979,0.96,21.057,21.048,35.64]
[1674201933809,0.96,21.056,21.048,35.64]
[1674201934250,0.96,21.055,21.048,35.64]
[1674201934460,0.96,21.054,21.045,35.64]
[1674201935292,0.96,21.055,21.045,35.64]
[1674201935498,45.61,21.063,21.048,10.0]
[1674201935712,1.92,21.058,21.048,10.0]
[1674201935917,1.92,21.058,21.048,45.64]
[1674201936133,10.0,21.063,21.05,15.4]
[1674201936333,10.0,21.063,21.051,35.63]
[1674201937496,1.92,21.062,21.051,35.63]
[1674201937730,10.0,21.063,21.051,35.63]
[1674201937942,10.0,21.063,21.048,35.64]
[1674201938152,45.61,21.063,21.048,35.64]
[1674201938363,10.0,21.063,21.048,35.64]
[1674201938571,33.75576951,21.063,21.048,35.64]
[1674201938994,10.0,21.061,21.048,35.64]
[1674201939192,18.92,21.06,21.048,35.64]
[1674201939619,10.0,21.059,21.048,35.64]
[1674201939830,18.92,21.058,21.045,35.64]
[1674201940371,18.92,21.058,21.046,10.0]
[1674201940581,1.92,21.058,21.048,45.64]
[1674201941086,1.92,21.058,21.048,35.64]
[1674201941297,1.92,21.058,21.047,152.9799]
[1674201942162,1.92,21.058,21.048,10.0]
[1674201943932,1.92,21.058,21.049,35.63]
[1674201944994,1.92,21.058,21.048,35.64]
[1674201945821,1.92,21.058,21.048,45.64]
[1674201947618,1.92,21.058,21.049,10.0]
[1674201950229,35.61,21.066,21.05,50.93]
[1674201950438,10.0,21.07,21.052,10.0]
[1674201950659,10.0,21.07,21.053,35.63]
[1674201950869,45.6,21.069,21.053,35.63]
[1674201951087,23.75576951,21.068,21.053,35.63]
[1674201951295,10.0,21.067,21.05,15.3]
[1674201951596,24.71576951,21.066,21.051,35.63]
[1674201951816,10.0,21.065,21.051,35.63]
[1674201952029,1.92,21.064,21.051,35.63]
[1674201952232,10.0,21.063,21.051,35.63]
[1674201952653,18.92,21.062,21.051,35.63]
[1674201953191,10.0,21.061,21.048,35.64]
[1674201953404,18.92,21.06,21.048,45.64]
[1674201954330,18.92,21.06,21.048,35.64]
[1674201955812,78.29576951,21.06,21.045,35.64]
[1674201956006,10.0,21.059,21.046,20.0]
[1674201956219,18.92,21.058,21.046,20.0]
[1674201956455,10.0,21.057,21.046,20.0]
[1674201956644,18.92,21.056,21.045,20.0]
[1674201957823,35.62,21.06,21.046,10.0]
[1674201958020,10.0,21.065,21.048,10.0]
[1674201958349,10.0,21.063,21.048,10.0]
[1674201958666,10.0,21.061,21.046,10.0]
[1674201958973,35.62,21.06,21.047,20.0]
[1674201960023,17.96,21.059,21.047,20.0]
[1674201960230,0.96,21.058,21.047,20.0]
[1674201962866,10.96,21.058,21.044,35.64]
[1674201963073,10.0,21.056,21.044,35.64]
[1674201963282,17.96,21.055,21.044,35.64]
[1674201963500,10.96,21.054,21.042,35.65]
[1674201963713,17.96,21.053,21.042,35.65]
[1674201963922,0.96,21.052,21.044,35.64]
[1674201964112,0.96,21.051,21.042,35.65]
[1674201964335,0.96,21.05,21.042,35.65]
[1674201964533,0.96,21.049,21.042,35.65]
[1674201964749,0.96,21.048,21.042,35.65]
[1674201967708,0.96,21.047,21.042,35.65]
[1674201967911,0.96,21.046,21.034,35.66]
[1674201968131,0.96,21.046,21.035,10.0]
[1674201968315,0.96,21.046,21.036,35.66]
[1674201968649,0.96,21.046,21.037,10.0]
[1674201968843,0.96,21.046,21.038,35.65]
[1674201977375,0.96,21.045,21.034,35.66]
[1674201977562,0.96,21.045,21.033,35.66]
[1674201977772,0.96,21.044,21.033,35.66]
[1674201977989,0.96,21.043,21.033,35.66]
[1674201978326,0.96,21.042,21.033,35.66]
[1674201979557,20.0,21.047,21.033,45.66]
[1674201979766,1.92,21.046,21.034,10.0]
[1674201979997,1.92,21.046,21.035,35.66]
[1674201980314,1.92,21.046,21.036,10.0]
[1674201981254,1.92,21.046,21.037,35.65]
[1674201983359,11.92,21.046,21.037,35.65]
[1674201983562,10.0,21.044,21.035,35.66]
[1674201983788,1.92,21.043,21.033,35.66]
[1674201984192,1.92,21.043,21.033,45.66]
[1674201985040,0.96,21.043,21.034,10.0]
[1674201985260,0.96,21.043,21.035,35.66]
[1674201985549,1.92,21.044,21.035,35.66]
[1674201987255,1.92,21.044,21.034,35.66]
[1674201989570,1.92,21.044,21.033,35.66]
[1674201989803,18.92,21.044,21.033,35.66]
[1674201991777,1.92,21.044,21.033,35.66]
[1674201992826,18.92,21.044,21.033,35.66]
[1674201994075,10.0,21.043,21.033,35.66]
[1674201994299,1.92,21.042,21.033,35.66]
[1674201994491,18.92,21.042,21.033,35.66]
[1674201994828,18.92,21.042,21.027,10.0]
[1674201995014,18.92,21.042,21.028,35.67]
[1674201995229,18.92,21.042,21.029,10.0]
[1674201995437,18.92,21.042,21.03,35.67]
[1674201995648,18.92,21.042,21.028,35.67]
[1674201996074,10.0,21.041,21.025,45.68]
[1674201996298,18.92,21.04,21.025,45.68]
[1674201996805,10.0,21.039,21.025,45.68]
[1674201997014,18.92,21.038,21.025,45.68]
[1674201997463,18.92,21.038,21.026,10.0]
[1674201997694,18.92,21.038,21.027,35.67]
[1674201999055,18.92,21.038,21.028,10.0]
[1674201999245,1.92,21.038,21.028,10.0]
[1674202008697,1.92,21.038,21.027,35.67]
[1674202008919,1.92,21.038,21.026,35.67]
[1674202009134,18.92,21.038,21.026,35.67]
[1674202009565,18.92,21.038,21.027,10.0]
[1674202012943,18.92,21.038,21.029,10.0]
[1674202015986,18.92,21.038,21.028,35.67]
[1674202016399,1.92,21.038,21.029,10.0]
[1674202016614,1.92,21.038,21.033,10.0]
[1674202017341,1.92,21.038,21.031,10.0]
[1674202018193,35.64,21.046,21.033,10.0]
[1674202018406,45.63,21.049,21.033,45.66]
[1674202019565,0.96,21.046,21.033,45.66]
[1674202020209,0.96,21.045,21.033,45.66]
[1674202020421,0.96,21.044,21.033,45.66]
[1674202020633,0.96,21.043,21.033,45.66]
[1674202020841,0.96,21.042,21.033,45.66]
[1674202022415,10.0,21.049,21.033,45.66]
[1674202022728,10.0,21.051,21.035,10.0]
[1674202022936,10.0,21.051,21.036,55.66]
[1674202023143,10.0,21.051,21.037,10.0]
[1674202023362,10.0,21.051,21.038,35.65]
[1674202023554,35.63,21.052,21.038,35.65]
[1674202023761,10.0,21.056,21.039,10.0]
[1674202023971,10.0,21.056,21.04,35.65]
[1674202024414,10.0,21.056,21.041,10.0]
[1674202024604,10.0,21.056,21.042,35.65]
[1674202025663,10.0,21.056,21.043,10.0]
[1674202025870,10.0,21.056,21.042,35.65]
[1674202026081,10.0,21.056,21.04,35.65]
[1674202026498,35.62,21.057,21.041,10.0]
[1674202026720,20.0,21.056,21.043,10.0]
[1674202027243,0.96,21.055,21.043,10.0]
[1674202027564,45.61,21.064,21.045,10.0]
[1674202027754,45.61,21.064,21.046,55.64]
[1674202027965,35.61,21.064,21.046,55.64]
[1674202028397,23.75576951,21.066,21.046,55.64]
[1674202028621,23.75576951,21.066,21.047,10.0]
[1674202028840,23.75576951,21.066,21.048,35.64]
[1674202029018,23.75576951,21.066,21.049,10.0]
[1674202029343,133.10686951,21.065,21.05,35.63]
[1674202029552,18.92,21.064,21.05,35.63]
[1674202029765,54.53,21.064,21.05,35.63]
[1674202030502,18.92,21.064,21.05,35.63]
[1674202030698,18.92,21.064,21.051,10.0]
[1674202033052,133.10686951,21.065,21.051,10.0]
[1674202033243,23.75576951,21.065,21.051,10.0]
[1674202033452,35.59,21.074,21.052,35.63]
[1674202033660,53.75576951,21.073,21.053,10.0]
[1674202033873,35.6,21.072,21.054,35.63]
[1674202034086,20.0,21.071,21.054,35.63]
[1674202034302,59.35576951,21.072,21.054,35.63]
[1674202034303,35.6,21.07,21.054,35.63]
[1674202034628,23.75576951,21.073,21.056,10.0]
[1674202034816,35.59,21.075,21.057,55.62]
[1674202035033,59.34576951,21.075,21.057,55.62]
[1674202035576,59.34576951,21.075,21.058,10.0]
[1674202035789,59.34576951,21.075,21.059,35.62]
[1674202035975,59.34576951,21.075,21.06,10.0]
[1674202036184,0.96,21.074,21.06,10.0]
[1674202036394,64.06594782,21.074,21.058,10.0]
[1674202036626,184.02963965,21.073,21.049,10.0]
[1674202036824,22.53847,21.072,21.046,114.4256]
[1674202037028,36.56,21.071,21.046,114.4256]
[1674202037238,37.96,21.07,21.046,114.4256]
[1674202037450,36.56,21.069,21.046,114.4256]
[1674202037666,47.96,21.068,21.047,20.0]
[1674202037882,36.56,21.067,21.047,20.0]
[1674202038072,47.96,21.066,21.047,20.0]
[1674202038290,36.57,21.065,21.047,20.0]
[1674202038599,10.0,21.063,21.047,20.0]
[1674202038819,73.57,21.062,21.043,111.9939]
[1674202039035,0.96,21.061,21.033,146.6552]
[1674202039241,41.15847,21.06,21.033,146.6552]
[1674202039456,10.0,21.058,21.034,10.0]
[1674202039671,57.54,21.057,21.035,35.66]
[1674202039861,27.0,21.056,21.035,35.66]
[1674202040077,37.54,21.055,21.035,35.66]
[1674202040301,17.0,21.054,21.036,20.0]
[1674202040512,47.55,21.053,21.036,30.0]
[1674202040826,17.0,21.052,21.036,10.0]
[1674202041040,36.59,21.051,21.036,10.0]
[1674202041227,17.96,21.05,21.036,10.0]
[1674202041436,0.96,21.049,21.036,10.0]
[1674202041772,35.63,21.052,21.036,10.0]
[1674202041976,35.62,21.055,21.037,35.65]
[1674202042195,10.0,21.054,21.038,10.0]
[1674202042386,10.0,21.054,21.039,35.65]
[1674202042594,35.62,21.055,21.04,10.0]
[1674202042822,35.62,21.055,21.039,35.65]
[1674202043036,18.92,21.054,21.037,35.65]
[1674202043382,10.0,21.052,21.037,35.65]
[1674202043551,18.92,21.051,21.037,35.65]
[1674202044311,0.96,21.051,21.037,35.65]
[1674202044527,0.96,21.051,21.038,10.0]
[1674202044711,36.59,21.053,21.037,35.65]
[1674202044923,10.0,21.052,21.037,35.65]
[1674202045152,0.96,21.051,21.037,35.65]
[1674202045774,17.96,21.051,21.036,10.0]
[1674202045988,10.0,21.05,21.037,55.65]
[1674202046179,17.96,21.049,21.037,55.65]
[1674202046744,0.96,21.048,21.037,55.65]
[1674202047040,0.96,21.047,21.037,55.65]
[1674202047252,0.96,21.046,21.037,55.65]
[1674202049785,0.96,21.046,21.038,10.0]
[1674202050168,397.4,21.073,21.038,10.0]
[1674202050407,35.62,21.055,21.038,10.0]
[1674202050595,35.62,21.055,21.04,10.0]
[1674202051348,37.3626,21.076,21.042,10.0]
[1674202051349,35.61,21.061,21.042,10.0]
[1674202051553,35.61,21.065,21.043,188.4077]
[1674202051766,35.61,21.065,21.043,205.72577659]
[1674202052090,35.61,21.065,21.045,10.0]
[1674202052273,35.61,21.065,21.047,10.0]
[1674202052485,35.61,21.065,21.048,35.64]
[1674202052712,35.61,21.065,21.049,10.0]
[1674202052923,35.61,21.065,21.05,35.63]
[1674202053135,18.92,21.064,21.05,35.63]
[1674202053535,35.61,21.065,21.05,52.94807659]
[1674202053749,35.6,21.069,21.052,10.0]
[1674202053988,35.6,21.069,21.053,35.63]
[1674202054202,59.34576951,21.074,21.054,20.0]
[1674202054375,35.58,21.079,21.055,35.62]
[1674202054591,23.75576951,21.083,21.056,20.0]
[1674202054790,35.58,21.082,21.057,35.62]
[1674202055000,10.0,21.081,21.058,10.0]
[1674202055225,55.58,21.08,21.059,35.62]
[1674202055448,10.0,21.079,21.06,10.0]
[1674202055650,55.59,21.078,21.06,10.0]
[1674202055863,10.0,21.077,21.06,10.0]